[Event "Titled Tuesday Blitz June 15 2021"]
[White "Durarbayli, Vasif"]
[Black "Dmitrenko, Viktor"]
[WhiteFideId "13402935"]
[BlackFideId "14110270"]
[WhiteElo "2500"]
[BlackElo "2338"]
[Result "1-0"]
[Round "05"]
[TimeControl "180+1"]
[Date "2021.06.15"]
[WhiteClock "0:00:03"]
[BlackClock "0:00:03"]

1. e4 {[%clk 0:03:00]}  e6 {[%clk 0:02:56]} 2. d4 {[%clk 0:03:00]}  d5 {[%clk 0:02:56]} 3. e5 {[%clk 0:03:01]}  c5 {[%clk 0:02:55]} 4. c3 {[%clk 0:03:01]}  Nc6 {[%clk 0:02:55]} 5. Nf3 {[%clk 0:03:02]}  Bd7 {[%clk 0:02:55]} 6. Be2 {[%clk 0:03:02]}  Rc8 {[%clk 0:02:51]} 7. O-O {[%clk 0:02:58]}  a6 {[%clk 0:02:51]} 8. dxc5 {[%clk 0:02:51]}  Bxc5 {[%clk 0:02:48]} 9. Bf4 {[%clk 0:02:49]}  Nge7 {[%clk 0:02:46]} 10. Bd3 {[%clk 0:02:45]}  Ng6 {[%clk 0:02:42]} 11. Bg3 {[%clk 0:02:45]}  O-O {[%clk 0:02:31]} 12. Nbd2 {[%clk 0:02:26]}  f5 {[%clk 0:02:25]} 13. exf6 {[%clk 0:02:18]}  Qxf6 {[%clk 0:02:23]} 14. Nb3 {[%clk 0:02:14]}  Bb6 {[%clk 0:02:22]} 15. Re1 {[%clk 0:01:59]}  Nf4 {[%clk 0:02:14]} 16. Nbd4 {[%clk 0:01:36]}  Nxd4 {[%clk 0:01:31]} 17. cxd4 {[%clk 0:01:33]}  Nxd3 {[%clk 0:01:13]} 18. Qxd3 {[%clk 0:01:31]}  Be8 {[%clk 0:01:09]} 19. Qb3 {[%clk 0:01:14]}  Rc6 {[%clk 0:00:46]} 20. Re5 {[%clk 0:00:25]}  Bc7 {[%clk 0:00:35]} 21. Re3 {[%clk 0:00:24]}  Rb6 {[%clk 0:00:29]} 22. Qa3 {[%clk 0:00:19]}  Bxg3 {[%clk 0:00:28]} 23. hxg3 {[%clk 0:00:20]}  Bh5 {[%clk 0:00:27]} 24. Rae1 {[%clk 0:00:16]}  Bg4 {[%clk 0:00:25]} 25. b3 {[%clk 0:00:09]}  Bxf3 {[%clk 0:00:22]} 26. Rxf3 {[%clk 0:00:10]}  Qd8 {[%clk 0:00:20]} 27. Rc1 {[%clk 0:00:08]}  Rxf3 {[%clk 0:00:17]} 28. gxf3 {[%clk 0:00:09]}  Qe8 {[%clk 0:00:13]} 29. Rc7 {[%clk 0:00:06]}  Qd8 {[%clk 0:00:11]} 30. Qc5 {[%clk 0:00:04]}  Qd6 {[%clk 0:00:05]} 31. Qc2 {[%clk 0:00:02]}  h6 {[%clk 0:00:05]} 32. Rc8+ {[%clk 0:00:02]}  Kf7 {[%clk 0:00:05]} 33. Qh7 {[%clk 0:00:03]}  Qd7 {[%clk 0:00:04]} 34. Qg8+ {[%clk 0:00:03]}  Kf6 {[%clk 0:00:04]} 35. Qf8+ {[%clk 0:00:04]}  Kg6 {[%clk 0:00:04]} 36. Re8 {[%clk 0:00:03]}  Rc6 {[%clk 0:00:04]} 37. Re7 {[%clk 0:00:03]}  Rc1+ {[%clk 0:00:03]} 38. Kg2 {[%clk 0:00:03]} 1-0


[Site "https://www.chess.com"]

[Event "Titled Tuesday Blitz June 15 2021"]
[White "Enriquack"]
[Black "Aditya Mittal"]
[BlackFideId "35042025"]
[WhiteElo "2510"]
[BlackElo "2171"]
[Result "1/2-1/2"]
[Round "05"]
[TimeControl "180+1"]
[Date "2021.06.15"]
[WhiteClock "0:00:13"]
[BlackClock "0:00:03"]

1. e4 {[%clk 0:03:00]}  c5 {[%clk 0:03:00]} 2. Nf3 {[%clk 0:02:58]}  d6 {[%clk 0:03:00]} 3. d4 {[%clk 0:02:57]}  cxd4 {[%clk 0:03:01]} 4. Nxd4 {[%clk 0:02:58]}  Nf6 {[%clk 0:03:02]} 5. Nc3 {[%clk 0:02:58]}  a6 {[%clk 0:03:03]} 6. Bg5 {[%clk 0:02:58]}  e6 {[%clk 0:03:02]} 7. f4 {[%clk 0:02:58]}  Nbd7 {[%clk 0:03:03]} 8. Qe2 {[%clk 0:02:57]}  Qc7 {[%clk 0:03:03]} 9. O-O-O {[%clk 0:02:58]}  b5 {[%clk 0:03:04]} 10. a3 {[%clk 0:02:57]}  Bb7 {[%clk 0:03:04]} 11. g4 {[%clk 0:02:58]}  Be7 {[%clk 0:03:05]} 12. f5 {[%clk 0:02:53]}  e5 {[%clk 0:03:01]} 13. Bxf6 {[%clk 0:02:53]}  gxf6 {[%clk 0:02:04]} 14. Nb3 {[%clk 0:02:51]}  Rc8 {[%clk 0:02:04]} 15. h4 {[%clk 0:02:44]}  Nb6 {[%clk 0:02:05]} 16. Rh3 {[%clk 0:02:44]}  Na4 {[%clk 0:01:40]} 17. Qd2 {[%clk 0:02:21]}  Qb6 {[%clk 0:01:10]} 18. Nd5 {[%clk 0:01:33]}  Bxd5 {[%clk 0:01:07]} 19. exd5 {[%clk 0:01:32]}  Rg8 {[%clk 0:00:55]} 20. Be2 {[%clk 0:01:29]}  Nc5 {[%clk 0:00:53]} 21. Na5 {[%clk 0:01:24]}  Ne4 {[%clk 0:00:36]} 22. Qe1 {[%clk 0:01:18]}  Nf2 {[%clk 0:00:35]} 23. Rc3 {[%clk 0:00:46]}  Rxc3 {[%clk 0:00:31]} 24. Qxc3 {[%clk 0:00:47]}  Nxd1 {[%clk 0:00:30]} 25. Bxd1 {[%clk 0:00:43]}  Qc5 {[%clk 0:00:27]} 26. Qd2 {[%clk 0:00:39]}  Bd8 {[%clk 0:00:24]} 27. Nc6 {[%clk 0:00:39]}  Bb6 {[%clk 0:00:24]} 28. Kb1 {[%clk 0:00:38]}  Kd7 {[%clk 0:00:20]} 29. Qh6 {[%clk 0:00:36]}  Qg1 {[%clk 0:00:19]} 30. Qxh7 {[%clk 0:00:34]}  Qxd1+ {[%clk 0:00:19]} 31. Ka2 {[%clk 0:00:35]}  Qxd5+ {[%clk 0:00:20]} 32. b3 {[%clk 0:00:35]}  Rc8 {[%clk 0:00:14]} 33. Nb4 {[%clk 0:00:32]}  Qe4 {[%clk 0:00:06]} 34. Qxf7+ {[%clk 0:00:32]}  Kd8 {[%clk 0:00:07]} 35. Qxf6+ {[%clk 0:00:21]}  Kc7 {[%clk 0:00:07]} 36. Qe7+ {[%clk 0:00:20]}  Kb8 {[%clk 0:00:07]} 37. Qxd6+ {[%clk 0:00:14]}  Kb7 {[%clk 0:00:08]} 38. Qd7+ {[%clk 0:00:13]}  Rc7 {[%clk 0:00:08]} 39. Qd3 {[%clk 0:00:09]}  Qxd3 {[%clk 0:00:07]} 40. cxd3 {[%clk 0:00:10]}  a5 {[%clk 0:00:05]} 41. Nd5 {[%clk 0:00:10]}  Rc2+ {[%clk 0:00:06]} 42. Kb1 {[%clk 0:00:10]}  Rh2 {[%clk 0:00:06]} 43. f6 {[%clk 0:00:10]}  Rxh4 {[%clk 0:00:05]} 44. f7 {[%clk 0:00:09]}  Bc5 {[%clk 0:00:05]} 45. b4 {[%clk 0:00:09]}  axb4 {[%clk 0:00:05]} 46. axb4 {[%clk 0:00:10]}  Bf8 {[%clk 0:00:06]} 47. Nf6 {[%clk 0:00:09]}  Kc7 {[%clk 0:00:06]} 48. g5 {[%clk 0:00:08]}  Kd8 {[%clk 0:00:06]} 49. g6 {[%clk 0:00:09]}  Ke7 {[%clk 0:00:06]} 50. Nh7 {[%clk 0:00:07]}  Rxh7 {[%clk 0:00:05]} 51. gxh7 {[%clk 0:00:07]}  Bg7 {[%clk 0:00:05]} 52. Kc2 {[%clk 0:00:06]}  Kxf7 {[%clk 0:00:06]} 53. Kd2 {[%clk 0:00:07]}  Kg6 {[%clk 0:00:05]} 54. Ke3 {[%clk 0:00:07]}  Kxh7 {[%clk 0:00:04]} 55. Ke4 {[%clk 0:00:08]}  Kg6 {[%clk 0:00:05]} 56. Kd5 {[%clk 0:00:09]}  Kf5 {[%clk 0:00:02]} 57. Kc5 {[%clk 0:00:10]}  Kf4 {[%clk 0:00:02]} 58. Kxb5 {[%clk 0:00:11]}  Ke3 {[%clk 0:00:02]} 59. Kc4 {[%clk 0:00:11]}  Bf8 {[%clk 0:00:03]} 60. b5 {[%clk 0:00:11]}  Bd6 {[%clk 0:00:03]} 61. b6 {[%clk 0:00:11]}  Bb8 {[%clk 0:00:03]} 62. b7 {[%clk 0:00:12]}  Bc7 {[%clk 0:00:03]} 63. Kc3 {[%clk 0:00:12]}  Bb8 {[%clk 0:00:03]} 64. Kc4 {[%clk 0:00:13]}  Ba7 {[%clk 0:00:03]} 65. Kc3 {[%clk 0:00:13]}  Ke2 {[%clk 0:00:03]} 66. Kc4 {[%clk 0:00:13]}  Ke3 {[%clk 0:00:02]} 67. Kc3 {[%clk 0:00:13]}  Bb8 {[%clk 0:00:03]} 68. Kc4 {[%clk 0:00:13]} 1/2-1/2


[Site "https://www.chess.com"]

[Event "Titled Tuesday Blitz June 15 2021"]
[White "Gledura, Benjamin"]
[Black "Kamsky, Gata"]
[WhiteFideId "712779"]
[BlackFideId "2000024"]
[WhiteElo "2377"]
[BlackElo "2644"]
[Result "1/2-1/2"]
[Round "05"]
[TimeControl "180+1"]
[Date "2021.06.15"]
[WhiteClock "0:00:20"]
[BlackClock "0:00:31"]

1. Nf3 {[%clk 0:03:00]}  Nf6 {[%clk 0:02:59]} 2. g3 {[%clk 0:03:00]}  g6 {[%clk 0:02:58]} 3. Bg2 {[%clk 0:02:59]}  Bg7 {[%clk 0:02:58]} 4. O-O {[%clk 0:03:00]}  O-O {[%clk 0:02:59]} 5. d4 {[%clk 0:02:58]}  d5 {[%clk 0:02:59]} 6. Ne5 {[%clk 0:02:57]}  c6 {[%clk 0:02:45]} 7. f4 {[%clk 0:02:48]}  Bf5 {[%clk 0:02:40]} 8. Nd2 {[%clk 0:02:47]}  Qc8 {[%clk 0:02:39]} 9. c3 {[%clk 0:02:45]}  Bh3 {[%clk 0:02:37]} 10. e3 {[%clk 0:02:41]}  Bxg2 {[%clk 0:02:36]} 11. Kxg2 {[%clk 0:02:42]}  Nbd7 {[%clk 0:02:33]} 12. b3 {[%clk 0:02:40]}  c5 {[%clk 0:02:24]} 13. Ba3 {[%clk 0:02:37]}  b6 {[%clk 0:02:24]} 14. Qe2 {[%clk 0:02:37]}  a5 {[%clk 0:02:18]} 15. Rac1 {[%clk 0:02:30]}  Qb7 {[%clk 0:02:10]} 16. Qb5 {[%clk 0:02:20]}  Rfc8 {[%clk 0:02:00]} 17. h3 {[%clk 0:01:58]}  a4 {[%clk 0:01:54]} 18. bxa4 {[%clk 0:01:55]}  Ra5 {[%clk 0:01:51]} 19. Qb3 {[%clk 0:01:54]}  Qa8 {[%clk 0:01:48]} 20. g4 {[%clk 0:01:32]}  Rxa4 {[%clk 0:01:47]} 21. Nb1 {[%clk 0:01:32]}  e6 {[%clk 0:01:26]} 22. g5 {[%clk 0:01:25]}  Nxe5 {[%clk 0:01:25]} 23. fxe5 {[%clk 0:01:25]}  Ne4 {[%clk 0:01:19]} 24. Qxb6 {[%clk 0:01:24]}  Rxa3 {[%clk 0:01:16]} 25. Nxa3 {[%clk 0:01:23]}  Qxa3 {[%clk 0:01:16]} 26. Rc2 {[%clk 0:01:18]}  Rf8 {[%clk 0:01:06]} 27. h4 {[%clk 0:01:15]}  h6 {[%clk 0:01:02]} 28. h5 {[%clk 0:01:05]}  Nxg5 {[%clk 0:00:58]} 29. hxg6 {[%clk 0:01:04]}  fxg6 {[%clk 0:00:58]} 30. Rxf8+ {[%clk 0:01:04]}  Bxf8 {[%clk 0:00:58]} 31. Rf2 {[%clk 0:00:48]}  cxd4 {[%clk 0:00:56]} 32. exd4 {[%clk 0:00:45]}  Qxc3 {[%clk 0:00:52]} 33. Rxf8+ {[%clk 0:00:28]}  Kxf8 {[%clk 0:00:45]} 34. Qd8+ {[%clk 0:00:28]}  Kf7 {[%clk 0:00:44]} 35. Qd7+ {[%clk 0:00:28]}  Kg8 {[%clk 0:00:42]} 36. Qd8+ {[%clk 0:00:28]}  Kg7 {[%clk 0:00:39]} 37. Qf6+ {[%clk 0:00:28]}  Kh7 {[%clk 0:00:40]} 38. Qe7+ {[%clk 0:00:27]}  Kg8 {[%clk 0:00:40]} 39. Qd8+ {[%clk 0:00:23]}  Kf7 {[%clk 0:00:40]} 40. Qd7+ {[%clk 0:00:22]}  Kf8 {[%clk 0:00:38]} 41. Qd8+ {[%clk 0:00:22]}  Kg7 {[%clk 0:00:37]} 42. Qf6+ {[%clk 0:00:22]}  Kh7 {[%clk 0:00:32]} 43. Qe7+ {[%clk 0:00:21]}  Kg8 {[%clk 0:00:31]} 44. Qd8+ {[%clk 0:00:20]} 1/2-1/2


[Site "https://www.chess.com"]

[Event "Titled Tuesday Blitz June 15 2021"]
[White "Grineva, Marianna"]
[Black "Shapiro, David"]
[WhiteFideId "14102013"]
[BlackFideId "24133523"]
[WhiteElo "1925"]
[BlackElo "2234"]
[Result "1-0"]
[Round "05"]
[TimeControl "180+1"]
[Date "2021.06.15"]
[WhiteClock "0:00:19"]
[BlackClock "0:00:01"]

1. e4 {[%clk 0:03:00]}  c6 {[%clk 0:02:51]} 2. d4 {[%clk 0:03:00]}  d5 {[%clk 0:02:52]} 3. e5 {[%clk 0:03:00]}  Bf5 {[%clk 0:02:51]} 4. h4 {[%clk 0:03:00]}  h5 {[%clk 0:02:50]} 5. Bd3 {[%clk 0:03:00]}  Bxd3 {[%clk 0:02:49]} 6. Qxd3 {[%clk 0:03:01]}  e6 {[%clk 0:02:49]} 7. Bg5 {[%clk 0:02:59]}  Qb6 {[%clk 0:02:48]} 8. Nd2 {[%clk 0:02:58]}  Nh6 {[%clk 0:02:44]} 9. Bxh6 {[%clk 0:02:48]}  Rxh6 {[%clk 0:02:45]} 10. Ne2 {[%clk 0:02:43]}  Nd7 {[%clk 0:02:36]} 11. c4 {[%clk 0:02:40]}  Bb4 {[%clk 0:02:24]} 12. O-O-O {[%clk 0:02:23]}  Qa6 {[%clk 0:02:18]} 13. a3 {[%clk 0:02:12]}  Bxd2+ {[%clk 0:02:17]} 14. Rxd2 {[%clk 0:02:12]}  Qxc4+ {[%clk 0:02:17]} 15. Qxc4 {[%clk 0:02:00]}  dxc4 {[%clk 0:02:18]} 16. Nc3 {[%clk 0:01:57]}  Rg6 {[%clk 0:02:09]} 17. g3 {[%clk 0:01:49]}  Rg4 {[%clk 0:02:09]} 18. Re1 {[%clk 0:01:50]}  c5 {[%clk 0:01:57]} 19. d5 {[%clk 0:01:45]}  O-O-O {[%clk 0:01:28]} 20. dxe6 {[%clk 0:01:33]}  fxe6 {[%clk 0:01:28]} 21. Red1 {[%clk 0:01:33]}  Rd4 {[%clk 0:01:26]} 22. Nb5 {[%clk 0:01:27]}  Nxe5 {[%clk 0:01:01]} 23. Nxd4 {[%clk 0:01:20]}  cxd4 {[%clk 0:01:00]} 24. Re2 {[%clk 0:01:13]}  Nd3+ {[%clk 0:00:58]} 25. Kb1 {[%clk 0:01:10]}  e5 {[%clk 0:00:52]} 26. b3 {[%clk 0:01:06]}  b5 {[%clk 0:00:52]} 27. a4 {[%clk 0:01:05]}  Nb4 {[%clk 0:00:40]} 28. Rxe5 {[%clk 0:00:53]}  c3 {[%clk 0:00:36]} 29. Rc5+ {[%clk 0:00:49]}  Kb7 {[%clk 0:00:19]} 30. Rxb5+ {[%clk 0:00:48]}  Ka6 {[%clk 0:00:19]} 31. Rxb4 {[%clk 0:00:49]}  d3 {[%clk 0:00:20]} 32. Re1 {[%clk 0:00:38]}  c2+ {[%clk 0:00:16]} 33. Kb2 {[%clk 0:00:38]}  Rd6 {[%clk 0:00:08]} 34. Rf1 {[%clk 0:00:23]}  Re6 {[%clk 0:00:03]} 35. Rd4 {[%clk 0:00:21]}  Rc6 {[%clk 0:00:01]} 36. Rxd3 {[%clk 0:00:19]} 1-0


[Site "https://www.chess.com"]

[Event "Titled Tuesday Blitz June 15 2021"]
[White "Grunberg, Mihai-Lucian"]
[Black "Shipov, Sergei"]
[WhiteFideId "1204149"]
[BlackFideId "4113624"]
[WhiteElo "2364"]
[BlackElo "2777"]
[Result "0-1"]
[Round "05"]
[TimeControl "180+1"]
[Date "2021.06.15"]
[WhiteClock "0:00:08"]
[BlackClock "0:01:35"]

1. Nf3 {[%clk 0:03:00]}  d5 {[%clk 0:02:59]} 2. c4 {[%clk 0:03:00]}  e6 {[%clk 0:02:58]} 3. g3 {[%clk 0:03:00]}  dxc4 {[%clk 0:02:57]} 4. Bg2 {[%clk 0:02:59]}  c6 {[%clk 0:02:56]} 5. O-O {[%clk 0:03:00]}  b5 {[%clk 0:02:56]} 6. a4 {[%clk 0:03:00]}  Bb7 {[%clk 0:02:55]} 7. b3 {[%clk 0:03:00]}  cxb3 {[%clk 0:02:55]} 8. Qxb3 {[%clk 0:02:59]}  b4 {[%clk 0:02:49]} 9. d4 {[%clk 0:02:55]}  a5 {[%clk 0:02:48]} 10. Nbd2 {[%clk 0:02:49]}  c5 {[%clk 0:02:47]} 11. Bb2 {[%clk 0:02:34]}  Nd7 {[%clk 0:02:47]} 12. e4 {[%clk 0:02:22]}  Ngf6 {[%clk 0:02:45]} 13. d5 {[%clk 0:02:09]}  exd5 {[%clk 0:02:44]} 14. exd5 {[%clk 0:02:08]}  Bxd5 {[%clk 0:02:41]} 15. Rfe1+ {[%clk 0:02:08]}  Be7 {[%clk 0:02:40]} 16. Qe3 {[%clk 0:02:06]}  Ra6 {[%clk 0:02:33]} 17. Ng5 {[%clk 0:01:53]}  Bxg2 {[%clk 0:02:32]} 18. Kxg2 {[%clk 0:01:50]}  h6 {[%clk 0:02:32]} 19. Nge4 {[%clk 0:01:42]}  O-O {[%clk 0:02:32]} 20. Rad1 {[%clk 0:01:27]}  Re6 {[%clk 0:02:31]} 21. Qf3 {[%clk 0:01:18]}  Qc7 {[%clk 0:02:10]} 22. Nc4 {[%clk 0:01:01]}  Rxe4 {[%clk 0:01:56]} 23. Rxe4 {[%clk 0:00:59]}  Nxe4 {[%clk 0:01:56]} 24. Qxe4 {[%clk 0:00:57]}  Bf6 {[%clk 0:01:54]} 25. Qg4 {[%clk 0:00:25]}  Bxb2 {[%clk 0:01:46]} 26. Rxd7 {[%clk 0:00:24]}  Qc6+ {[%clk 0:01:46]} 27. Kg1 {[%clk 0:00:21]}  Bd4 {[%clk 0:01:46]} 28. Nd6 {[%clk 0:00:16]}  b3 {[%clk 0:01:41]} 29. Nf5 {[%clk 0:00:12]}  Qf6 {[%clk 0:01:41]} 30. Rd6 {[%clk 0:00:11]}  b2 {[%clk 0:01:35]} 31. Rxf6 {[%clk 0:00:10]}  b1=Q+ {[%clk 0:01:35]} 32. Kg2 {[%clk 0:00:08]}  Bxf6 {[%clk 0:01:35]} 0-1


[Site "https://www.chess.com"]

[Event "Titled Tuesday Blitz June 15 2021"]
[White "Guliev, Logman"]
[Black "Morefield, Jason"]
[WhiteFideId "13400061"]
[BlackFideId "30920825"]
[WhiteElo "2128"]
[BlackElo "2171"]
[Result "0-1"]
[Round "05"]
[TimeControl "180+1"]
[Date "2021.06.15"]
[WhiteClock "0:00:44"]
[BlackClock "0:01:54"]

1. e4 {[%clk 0:03:00]}  c5 {[%clk 0:02:59]} 2. Nf3 {[%clk 0:03:00]}  d6 {[%clk 0:02:58]} 3. d4 {[%clk 0:03:00]}  cxd4 {[%clk 0:02:59]} 4. Nxd4 {[%clk 0:03:01]}  Nf6 {[%clk 0:03:00]} 5. Nc3 {[%clk 0:03:01]}  Nc6 {[%clk 0:02:59]} 6. Bg5 {[%clk 0:03:00]}  e6 {[%clk 0:02:59]} 7. Qd2 {[%clk 0:03:00]}  Bd7 {[%clk 0:02:58]} 8. O-O-O {[%clk 0:03:00]}  Be7 {[%clk 0:02:58]} 9. f4 {[%clk 0:02:57]}  Nxd4 {[%clk 0:02:45]} 10. Qxd4 {[%clk 0:02:57]}  Bc6 {[%clk 0:02:35]} 11. Bc4 {[%clk 0:02:24]}  Qa5 {[%clk 0:02:33]} 12. e5 {[%clk 0:01:58]}  dxe5 {[%clk 0:02:29]} 13. fxe5 {[%clk 0:01:55]}  Rd8 {[%clk 0:02:27]} 14. Qh4 {[%clk 0:01:41]}  Rxd1+ {[%clk 0:02:23]} 15. Rxd1 {[%clk 0:01:40]}  Qxe5 {[%clk 0:02:23]} 16. Re1 {[%clk 0:01:02]}  Qa5 {[%clk 0:02:10]} 17. Bd3 {[%clk 0:00:46]}  h6 {[%clk 0:01:56]} 18. Kb1 {[%clk 0:00:44]}  Qxg5 {[%clk 0:01:54]} 0-1


[Site "https://www.chess.com"]

[Event "Titled Tuesday Blitz June 15 2021"]
[White "Henderson de La Fuente, Lance"]
[Black "Kislov, Oleg"]
[WhiteFideId "32096585"]
[BlackFideId "13503774"]
[WhiteElo "2280"]
[BlackElo "2252"]
[Result "0-1"]
[Round "05"]
[TimeControl "180+1"]
[Date "2021.06.15"]
[WhiteClock "0:00:13"]
[BlackClock "0:00:18"]

1. e4 {[%clk 0:03:00]}  c5 {[%clk 0:02:59]} 2. Nc3 {[%clk 0:03:00]}  Nc6 {[%clk 0:02:58]} 3. Bb5 {[%clk 0:02:48]}  g6 {[%clk 0:02:54]} 4. Bxc6 {[%clk 0:02:47]}  dxc6 {[%clk 0:02:54]} 5. Nf3 {[%clk 0:02:47]}  Bg7 {[%clk 0:02:54]} 6. d3 {[%clk 0:02:46]}  e5 {[%clk 0:02:48]} 7. Be3 {[%clk 0:02:41]}  Qe7 {[%clk 0:02:48]} 8. O-O {[%clk 0:02:40]}  Nf6 {[%clk 0:02:48]} 9. a3 {[%clk 0:02:34]}  O-O {[%clk 0:02:44]} 10. Rb1 {[%clk 0:02:26]}  a5 {[%clk 0:02:34]} 11. Na4 {[%clk 0:02:25]}  Nd7 {[%clk 0:02:34]} 12. Nd2 {[%clk 0:02:23]}  b5 {[%clk 0:02:31]} 13. Nc3 {[%clk 0:02:22]}  a4 {[%clk 0:02:22]} 14. Nf3 {[%clk 0:02:03]}  Rd8 {[%clk 0:02:16]} 15. Re1 {[%clk 0:02:02]}  Nf8 {[%clk 0:02:16]} 16. Qe2 {[%clk 0:02:00]}  Ne6 {[%clk 0:02:14]} 17. Qf1 {[%clk 0:01:57]}  Nd4 {[%clk 0:02:13]} 18. Bxd4 {[%clk 0:01:57]}  cxd4 {[%clk 0:02:12]} 19. Ne2 {[%clk 0:01:57]}  c5 {[%clk 0:02:11]} 20. c3 {[%clk 0:01:56]}  Be6 {[%clk 0:02:07]} 21. cxd4 {[%clk 0:01:54]}  cxd4 {[%clk 0:02:06]} 22. Rec1 {[%clk 0:01:49]}  Rdc8 {[%clk 0:02:05]} 23. Rxc8+ {[%clk 0:01:45]}  Rxc8 {[%clk 0:02:05]} 24. Rc1 {[%clk 0:01:46]}  Qd7 {[%clk 0:01:54]} 25. Rxc8+ {[%clk 0:01:44]}  Qxc8 {[%clk 0:01:54]} 26. Qc1 {[%clk 0:01:44]}  Qxc1+ {[%clk 0:01:51]} 27. Nxc1 {[%clk 0:01:45]}  f6 {[%clk 0:01:52]} 28. Kf1 {[%clk 0:01:45]}  Bf8 {[%clk 0:01:52]} 29. Ke1 {[%clk 0:01:44]}  b4 {[%clk 0:01:50]} 30. axb4 {[%clk 0:01:44]}  Bxb4+ {[%clk 0:01:51]} 31. Kd1 {[%clk 0:01:44]}  Kf7 {[%clk 0:01:41]} 32. Nd2 {[%clk 0:01:43]}  h5 {[%clk 0:01:36]} 33. Nc4 {[%clk 0:01:43]}  Ke7 {[%clk 0:01:28]} 34. Ne2 {[%clk 0:01:36]}  g5 {[%clk 0:01:14]} 35. Ng3 {[%clk 0:01:31]}  Kd7 {[%clk 0:00:51]} 36. f3 {[%clk 0:01:19]}  Kc6 {[%clk 0:00:48]} 37. Nd2 {[%clk 0:00:55]}  h4 {[%clk 0:00:45]} 38. Nf5 {[%clk 0:00:55]}  Bxf5 {[%clk 0:00:34]} 39. exf5 {[%clk 0:00:55]}  Bxd2 {[%clk 0:00:34]} 40. Kxd2 {[%clk 0:00:56]}  Kb5 {[%clk 0:00:34]} 41. Kc1 {[%clk 0:00:50]}  Kc5 {[%clk 0:00:33]} 42. Kd1 {[%clk 0:00:49]}  Kb4 {[%clk 0:00:27]} 43. Kc2 {[%clk 0:00:49]}  a3 {[%clk 0:00:28]} 44. bxa3+ {[%clk 0:00:45]}  Kxa3 {[%clk 0:00:28]} 45. g3 {[%clk 0:00:21]}  hxg3 {[%clk 0:00:27]} 46. hxg3 {[%clk 0:00:22]}  Ka2 {[%clk 0:00:27]} 47. Kd2 {[%clk 0:00:21]}  Kb2 {[%clk 0:00:26]} 48. Ke2 {[%clk 0:00:13]}  Kc2 {[%clk 0:00:26]} 49. f4 {[%clk 0:00:12]}  exf4 {[%clk 0:00:23]} 50. gxf4 {[%clk 0:00:13]}  g4 {[%clk 0:00:18]} 0-1


[Site "https://www.chess.com"]

[Event "Titled Tuesday Blitz June 15 2021"]
[White "Indjic, Aleksandar"]
[Black "Nestorovic, Nikola"]
[WhiteFideId "911925"]
[BlackFideId "934526"]
[WhiteElo "2643"]
[BlackElo "2411"]
[Result "0-1"]
[Round "05"]
[TimeControl "180+1"]
[Date "2021.06.15"]
[WhiteClock "0:00:03"]
[BlackClock "0:00:13"]

1. d4 {[%clk 0:03:00]}  Nf6 {[%clk 0:02:53]} 2. Nf3 {[%clk 0:02:59]}  c5 {[%clk 0:02:48]} 3. d5 {[%clk 0:02:55]}  d6 {[%clk 0:02:46]} 4. c4 {[%clk 0:02:53]}  b5 {[%clk 0:02:46]} 5. Qc2 {[%clk 0:02:52]}  bxc4 {[%clk 0:02:44]} 6. e4 {[%clk 0:02:52]}  g6 {[%clk 0:02:45]} 7. Bxc4 {[%clk 0:02:51]}  Bg7 {[%clk 0:02:45]} 8. O-O {[%clk 0:02:51]}  O-O {[%clk 0:02:46]} 9. h3 {[%clk 0:02:51]}  Ba6 {[%clk 0:02:45]} 10. Na3 {[%clk 0:02:49]}  Qb6 {[%clk 0:02:40]} 11. Qe2 {[%clk 0:02:47]}  Bxc4 {[%clk 0:02:28]} 12. Nxc4 {[%clk 0:02:47]}  Qa6 {[%clk 0:02:28]} 13. Re1 {[%clk 0:02:45]}  Nbd7 {[%clk 0:02:28]} 14. Bg5 {[%clk 0:02:38]}  Nb6 {[%clk 0:02:27]} 15. Nfd2 {[%clk 0:02:34]}  Rab8 {[%clk 0:02:19]} 16. Nxb6 {[%clk 0:02:26]}  Qxe2 {[%clk 0:02:16]} 17. Rxe2 {[%clk 0:02:25]}  axb6 {[%clk 0:02:14]} 18. a4 {[%clk 0:02:20]}  b5 {[%clk 0:02:14]} 19. a5 {[%clk 0:02:20]}  h6 {[%clk 0:02:11]} 20. Be3 {[%clk 0:02:17]}  Nd7 {[%clk 0:02:09]} 21. Ra2 {[%clk 0:02:13]}  Ra8 {[%clk 0:01:53]} 22. f4 {[%clk 0:02:05]}  Ra6 {[%clk 0:01:53]} 23. b4 {[%clk 0:01:57]}  Rfa8 {[%clk 0:01:49]} 24. Nb3 {[%clk 0:01:55]}  cxb4 {[%clk 0:01:37]} 25. Rac2 {[%clk 0:01:51]}  Bc3 {[%clk 0:01:37]} 26. Kf2 {[%clk 0:01:30]}  f5 {[%clk 0:01:30]} 27. exf5 {[%clk 0:01:27]}  gxf5 {[%clk 0:01:31]} 28. Bd4 {[%clk 0:01:27]}  Bxd4+ {[%clk 0:01:22]} 29. Nxd4 {[%clk 0:01:27]}  Rxa5 {[%clk 0:01:11]} 30. Rc7 {[%clk 0:01:18]}  R5a7 {[%clk 0:01:08]} 31. Rxa7 {[%clk 0:01:11]}  Rxa7 {[%clk 0:01:09]} 32. Rxe7 {[%clk 0:01:10]}  Ra2+ {[%clk 0:01:10]} 33. Kg1 {[%clk 0:01:06]}  Nc5 {[%clk 0:01:10]} 34. Re8+ {[%clk 0:00:58]}  Kf7 {[%clk 0:01:08]} 35. Rb8 {[%clk 0:00:58]}  b3 {[%clk 0:00:56]} 36. Nxb5 {[%clk 0:00:25]}  b2 {[%clk 0:00:44]} 37. Kh2 {[%clk 0:00:16]}  b1=Q {[%clk 0:00:22]} 38. Nxd6+ {[%clk 0:00:15]}  Ke7 {[%clk 0:00:22]} 39. Nc8+ {[%clk 0:00:08]}  Kd8 {[%clk 0:00:22]} 40. Rxb1 {[%clk 0:00:08]}  Kxc8 {[%clk 0:00:23]} 41. Rb6 {[%clk 0:00:08]}  Ra6 {[%clk 0:00:17]} 42. Rxa6 {[%clk 0:00:04]}  Nxa6 {[%clk 0:00:17]} 43. g4 {[%clk 0:00:04]}  Kd7 {[%clk 0:00:15]} 44. g5 {[%clk 0:00:02]}  hxg5 {[%clk 0:00:15]} 45. fxg5 {[%clk 0:00:03]}  Nb4 {[%clk 0:00:13]} 0-1


[Site "https://www.chess.com"]